Cogmind - Beta 15 @@@ ROGUE MODE // 2025.09.06 @ 10:49:19 Player: beans Result: Destroyed by G-47 Trooper with Particle Gun Performance ------------- Evolutions (2) 1000 Regions Visited (7) 1400 Robots Destroyed (46) 230 Value Destroyed (981) 981 Prototype IDs (2) 40 Alien Tech Used (0) 0 Bonus (79) 79 TOTAL SCORE: 3730 Bonus ------- Follower Combat Kills 116 Friendly Fire -37 Cogmind --------- Core Integrity 0/550 Matter 204/300 Energy 100/100 System Corruption 0% Temperature Hot (234) Movement Core (150) Ox2 Location -8/Materials Parts ------- > --- POWER (1) -------- (None) > --- PROPULSION (2) --- (None) > --- UTILITY (5) ------ Hacking Suite > --- WEAPON (3) ------- Enhanced Autogun Enhanced Autogun Enhanced Autogun > --- INVENTORY (5) ---- High-capacity Matter Pod (200) Experimental Sensor Array Beam Rifle Stasis Trap (100%) Peak State ------------ > --- POWER ------------ Improved Ion Engine > --- PROPULSION ------- Light Treads Hover Unit > --- UTILITY ---------- High-capacity Matter Pod Hardened Medium Armor Plating Hacking Suite Hacking Suite Hacking Suite > --- WEAPON ----------- Beam Rifle Assault Cannon > --- INVENTORY -------- High-capacity Matter Pod Experimental Sensor Array Hardened Medium Armor Plating Stasis Trap [Rating: 23] Favorites ----------- Power Ion Engine Engine Ion Engine Propulsion Light Treads Treads Light Treads Leg Carbon-fiber Leg Hover Unit Hover Unit Utility Hacking Suite Storage High-capacity Matter Pod Hackware Hacking Suite Protection Hardened Medium Armor Plating Weapon Heavy Assault Rifle Energy Gun Beam Rifle Ballistic Gun Heavy Assault Rifle Ballistic Cannon Assault Cannon Launcher Grenade Launcher Build | -11 -10 -10 -9 -9 -9 -8 -8 ------- Run | Yrd Mat Min Mat Min Exi Min Mat Slots Evolved 4 | . . . 2 . . . 2 Power . | . . . . . . . . Propulsion . | . . . . . . . . Utility 3 | . . . 2 . . . 1 Weapon 1 | . . . . . . . 1 Parts Attached 33 | 4 2 1 4 1 . . 21 Power 5 | 1 . . . 1 . . 3 Engine 5 | 1 . . . 1 . . 3 Core . | . . . . . . . . Reactor . | . . . . . . . . Propulsion 7 | 2 . . . . . . 5 Treads 5 | 2 . . . . . . 3 Leg 1 | . . . . . . . 1 Wheel . | . . . . . . . . Hover 1 | . . . . . . . 1 Flight . | . . . . . . . . Utility 8 | . . 1 3 . . . 4 Device . | . . . . . . . . Storage 1 | . . 1 . . . . . Processor . | . . . . . . . . Hackware 4 | . . . 3 . . . 1 Protection 3 | . . . . . . . 3 Artifact . | . . . . . . . . Weapon 13 | 1 2 . 1 . . . 9 Energy Gun 4 | . . . . . . . 4 Energy Cannon . | . . . . . . . . Ballistic Gun 7 | 1 2 . . . . . 4 Ballistic Cannon 1 | . . . . . . . 1 Launcher 1 | . . . 1 . . . . Special Weapon . | . . . . . . . . Impact Weapon . | . . . . . . . . Slashing Weapon . | . . . . . . . . Piercing Weapon . | . . . . . . . . Special Melee Weapon . | . . . . . . . . Unidentified Prototypes 2 | . . . . . . . 2 Parts Lost 23 | . . . . 1 . 6 16 Power 3 | . . . . . . 1 2 Propulsion 6 | . . . . 1 . 1 4 Utility 7 | . . . . . . 1 6 Weapon 7 | . . . . . . 3 4 Highest Loss Streak 11 | . . . . 1 . 6 11 To Critical Strikes . | . . . . . . . . Average Backups 3 | . 1 3 4 4 4 3 2 Power . | . . . . . . . . Propulsion . | . . . . . . . . Utility 2 | . . 1 2 3 3 3 2 Weapon 1 | . 1 2 1 1 1 . . Tool/Special . | . . . . . . . . Unused Backups 2 | . . . . . . . 2 Power . | . . . . . . . . Propulsion . | . . . . . . . . Utility 2 | . . . . . . . 2 Weapon . | . . . . . . . . Tool/Special . | . . . . . . . . Average Slot Usage (%) 76 | . 64 78 84 92 88 67 57 Engine 10 | . 14 14 11 11 11 9 4 Treads 16 | . 28 28 22 15 11 4 3 Storage 8 | . . 7 11 11 11 11 6 Hackware 18 | . . . 18 33 33 29 24 Protection 1 | . . . . . . . 4 Energy Gun 1 | . . . . . . . 6 Ballistic Gun 15 | . 21 28 17 15 11 6 1 Ballistic Cannon 1 | . . . . . . . 4 Launcher 3 | . . . 4 6 11 6 . Peak Build Rating 23 | 4 7 9 18 19 19 19 23 Average Rating 13 | 2 5 8 13 18 19 15 17 On Entrance 10 | . 4 7 9 18 19 19 8 Naked Turns . | . . . . . . . . Heaviest Build 27 | 7 11 15 15 15 14 14 27 Greatest Support 40 | 40 40 40 40 40 20 20 40 Greatest Overweight (x) 5 | . . . . . . 2 5 Average Overweight (x) . | . . . . . . 1 1 Largest Inventory Capacity 5 | 5 5 5 5 5 5 5 5 Average Capacity 5 | 5 5 5 5 5 5 5 5 Most Carried 5 | 3 3 5 5 5 5 5 5 Average Carried 4 | . 1 4 5 5 5 4 3 Final Capacity 5 | 5 5 5 5 5 5 5 5 Final Carried 5 | . 2 5 5 5 5 4 4 Class Distribution -------------------- 60% | Hacker-Mutant 39% | Mutant Dominant Class ---------------- Mutant | -10/Materials Mutant | -10/Mines Hacker-Mutant | -9/Materials Hacker-Mutant | -9/Mines Hacker-Mutant | -9/Exiles Hacker-Mutant | -8/Mines Hacker-Mutant | -8/Materials Resources | -11 -10 -10 -9 -9 -9 -8 -8 ----------- Run | Yrd Mat Min Mat Min Exi Min Mat Matter Collected 1205 | 240 85 102 248 114 . . 416 Remotely . | . . . . . . . . Salvage Created 1282 | . 177 146 314 51 . 67 527 Parts 92 | . 12 9 30 3 . 2 36 Haulers Intercepted 1 | . 1 . . . . . . Recyclers Shooed 4 | . 2 . . . . 1 1 Parts Field Recycled . | . . . . . . . . Retrieved Matter . | . . . . . . . . Parts Self-Destructed . | . . . . . . . . Prevented . | . . . . . . . . Kills | -11 -10 -10 -9 -9 -9 -8 -8 ------- Run | Yrd Mat Min Mat Min Exi Min Mat Combat Hostiles Destroyed 30 | . 3 . 13 2 . 3 9 Melee 1 | . . . . . . . 1 Guns 14 | . 3 . 6 . . . 5 Cannons 2 | . . . . . . . 2 AOE 12 | . . . 7 2 . 3 . Classes Destroyed 12 | . 3 2 5 1 . 1 . Worker 3 | . . . 2 . . . 1 Builder 1 | . . 1 . . . . . Tunneler 2 | . . 1 . . . . 1 Hauler 1 | . 1 . . . . . . Recycler 4 | . 1 1 . . . . 2 Operator 2 | . . . 1 . . . 1 Watcher 2 | . . . 1 . . . 1 Swarmer 14 | . 3 . 8 . . . 3 Grunt 12 | . . . 4 2 . 2 4 Duelist 1 | . . . . . . 1 . Sentry 3 | . . . 1 . . . 2 Zionite 1 | . . . . 1 . . . Best Kill Streak 7 | . 3 1 7 2 . 3 3 Combat Bots Only 6 | . 3 . 6 2 . 3 3 Max Kills in Single Turn 3 | . 1 1 3 2 . 2 1 Gunslinging 1 | . . . 1 . . . . Exploded 3 | . . . 3 1 . 2 . Melee 1 | . . . . . . . 1 Uniques/NPCs Destroyed . | . . . . . . . . Combat | -11 -10 -10 -9 -9 -9 -8 -8 -------- Run | Yrd Mat Min Mat Min Exi Min Mat Hostile Shots Fired 363 | . 13 19 36 13 . 38 244 Missed 104 | . 5 3 16 6 . 9 65 Hits 259 | . 8 16 20 7 . 29 179 Projectile 259 | . 8 16 20 7 . 29 179 Critical Strikes 9 | . . . . . . 3 6 Damage Taken 3665 | . 73 196 218 91 . 478 2609 Core 873 | . 20 42 52 10 . 196 553 Absorbed by Shields . | . . . . . . . . Core Remaining (%) 70 | 100 . 75 . . . 35 . Volleys Fired 149 | . 18 13 27 6 . 16 69 Largest 3 | . 2 2 2 2 . 1 3 Hottest 93 | . 46 46 46 46 . 30 93 Shots Fired 231 | . 35 26 42 7 . 16 105 Gun 178 | . 35 26 30 2 . 4 81 Cannon 24 | . . . . . . . 24 Launcher 29 | . . . 12 5 . 12 . Special . | . . . . . . . . Kinetic 154 | . 35 26 30 2 . 4 57 Thermal 29 | . . . . . . . 29 Explosive 29 | . . . 12 5 . 12 . Electromagnetic 19 | . . . . . . . 19 Robot Hit Streak 11 | . 4 4 11 4 . 5 9 Robot Miss Streak 6 | . 4 6 1 3 . 3 4 Penetration Max . | . . . . . . . . Secondary Targets 3 | . 1 . 1 . . . 1 Max Gunslinging Chain 1 | . 1 . 1 . . . 1 Shots Hit Robots 135 | . 19 12 26 4 . 8 66 Core Hits 75 | . 6 4 22 5 . 14 24 Critical Kills . | . . . . . . . . Critical Parts Destroyed 1 | . . . . . . . 1 Critical Strikes 4 | . . . . . . . 4 Burn 3 | . . . . . . . 3 Destroy 1 | . . . . . . . 1 Melee Attacks . | . . . . . . . . Impact . | . . . . . . . . Slashing . | . . . . . . . . Piercing . | . . . . . . . . Sneak Attacks . | . . . . . . . . Combat Hostiles . | . . . . . . . . Follow-up Attacks . | . . . . . . . . Damage Inflicted 3575 | . 292 206 886 263 . 720 1208 Guns 1721 | . 292 206 369 . . 15 839 Cannons 364 | . . . . . . . 364 Explosions 1485 | . . . 517 263 . 705 . Melee . | . . . . . . . . Ramming 5 | . . . . . . . 5 Kinetic 1559 | . 292 206 369 . . 15 677 Thermal 279 | . . . . . . . 279 Explosive 1485 | . . . 517 263 . 705 . Electromagnetic 247 | . . . . . . . 247 Impact . | . . . . . . . . Slashing . | . . . . . . . . Piercing . | . . . . . . . . Highest Corruption . | . . . . . . . . Average Corruption . | . . . . . . . . Corruption Purged . | . . . . . . . . Corruption Blocked . | . . . . . . . . Overload Shots . | . . . . . . . . Overflow Damage 56 | . . . 35 . . 3 18 Projectiles 18 | . . . . . . . 18 Explosions 38 | . . . 35 . . 3 . Melee . | . . . . . . . . Knockbacks 8 | . . . . . . . 8 Impact . | . . . . . . . . Kinetic 8 | . . . . . . . 8 Secondary . | . . . . . . . . Self-Inflicted Damage 43 | . . . . 6 . 37 . Shots 4 | . . . . 1 . 3 . Rammed 7 | . . . . . . . 7 Targets Rammed 8 | . . . . . . . 8 Kicked . | . . . . . . . . Crushed 1 | . . . . . . . 1 Highest Temperature 385 | . . 29 7 7 . 82 385 Average Temperature 94 | . . 15 7 3 . 44 110 Received Heat Transfer 1947 | . . 120 84 51 . 315 1377 Effects 4 | . . . . . . . 4 Interference 2 | . . . . . . . 2 Matter Decay 1 | . . . . . . . 1 Short Circuit 1 | . . . . . . . 1 Siege Activations . | . . . . . . . . Martial Activations . | . . . . . . . . Shielding Activations . | . . . . . . . . Robots Disrupted . | . . . . . . . . Combat Hostiles . | . . . . . . . . Robots Corrupted 1 | . . . . . . . 1 Combat Hostiles 1 | . . . . . . . 1 Parts Fried 3 | . . . . . . . 3 Impact Corruptions . | . . . . . . . . Robots Melted . | . . . . . . . . Combat Hostiles . | . . . . . . . . Parts Melted 1 | . . . 1 . . . . Heat Transferred 888 | . . . . . . . 888 Parts Sabotaged . | . . . . . . . . Parts Stolen . | . . . . . . . . Parts Stripped . | . . . . . . . . Power Chain Reactions . | . . . . . . . . Alert | -11 -10 -10 -9 -9 -9 -8 -8 ------- Run | Yrd Mat Min Mat Min Exi Min Mat Maximum Alert Level 1 | . . . 1 . . . . Low Security (%) 90 | 100 100 100 22 100 . 100 100 Level 1 9 | . . . 77 . . . . Level 2 . | . . . . . . . . Level 3 . | . . . . . . . . Level 4 . | . . . . . . . . Level 5 . | . . . . . . . . High Security . | . . . . . . . . Max Security . | . . . . . . . . Peak Influence 392 | . 60 56 392 136 . 81 83 Initial 136 | . . 16 5 136 . . 4 Average 48 | . 17 5 235 63 . 32 18 Influence Increases 1284 | . 89 71 532 78 . 102 412 Destroy 0b10 Robot/C 720 | . 60 40 340 40 . 60 180 Destroy 0b10 Robot/NC 85 | . 10 15 30 . . . 30 Destroy Leader 170 | . 12 10 66 10 . 10 62 Allied During Kill 53 | . . 6 45 2 . . . Successful Hack 7 | . 7 . . . . . . Disable Machine 30 | . . . . . . . 30 Destroy Structure 114 | . . . 51 26 . 32 5 Lose Combat Pursuer 105 | . . . . . . . 105 Influence Decreases 1219 | . 47 99 194 430 . 90 359 Entered New Map 259 | . . 26 9 216 . . 8 Time Decay 714 | . 47 73 185 184 . 30 195 Lost Part 226 | . . . . 10 . 60 156 Lost Ally 20 | . . . . 20 . . . Squads Dispatched 2 | . . . . . . 1 1 Investigation 1 | . . . . . . . 1 Extermination . | . . . . . . . . Reinforcement 1 | . . . . . . 1 . Assault . | . . . . . . . . Garrison . | . . . . . . . . Intercept . | . . . . . . . . Searches Triggered . | . . . . . . . . Construction Impeded 1 | . . . . . . 1 . Haulers Reinforced . | . . . . . . . . Active Scanning Responses . | . . . . . . . . Cargo Convoy Interrupts . | . . . . . . . . Stealth | -11 -10 -10 -9 -9 -9 -8 -8 --------- Run | Yrd Mat Min Mat Min Exi Min Mat Distress Signals 1 | . . . 1 . . . . Communications Jammed . | . . . . . . . . Distress Signals . | . . . . . . . . Times Spotted 58 | . 7 2 19 2 . 5 23 Peak Tracking Total 6 | . 4 2 4 2 . 5 6 Tactical Retreats 5 | . . . . . . . 5 Traps | -11 -10 -10 -9 -9 -9 -8 -8 ------- Run | Yrd Mat Min Mat Min Exi Min Mat Traps Triggered 1 | . . . . . . . 1 Indirectly . | . . . . . . . . Trap Hack Attempts . | . . . . . . . . Triggered . | . . . . . . . . Disarmed . | . . . . . . . . Reprogrammed . | . . . . . . . . Reused . | . . . . . . . . Traps Extracted . | . . . . . . . . Installed . | . . . . . . . . Triggered . | . . . . . . . . Most Traps Carried 1 | . . 1 1 1 1 1 1 Machines | -11 -10 -10 -9 -9 -9 -8 -8 ---------- Run | Yrd Mat Min Mat Min Exi Min Mat Machines Disabled 3 | . 1 . . . . . 2 Max in Single Turn 1 | . 1 . . . . . 1 Machines Repaired . | . . . . . . . . Machines Dismantled . | . . . . . . . . Machines Sabotaged . | . . . . . . . . Overloaded Fab Kills . | . . . . . . . . Hacking | -11 -10 -10 -9 -9 -9 -8 -8 --------- Run | Yrd Mat Min Mat Min Exi Min Mat Machines Accessed 7 | . 2 . . . 4 . 1 Terminals 3 | . 2 . . . . . 1 Fabricators . | . . . . . . . . Repair Stations . | . . . . . . . . Recycling Units . | . . . . . . . . Scanalyzers . | . . . . . . . . Garrison Access . | . . . . . . . . Total Hacks 8 | . 2 . . . 4 . 2 Successful 6 | . 1 . . . 4 . 1 Failed 2 | . 1 . . . . . 1 Catastrophic . | . . . . . . . . Database Lockouts . | . . . . . . . . Manual 3 | . 2 . . . . . 1 Terminals 4 | . 2 . . . . . 2 Fabricators . | . . . . . . . . Repair Stations . | . . . . . . . . Recycling Units . | . . . . . . . . Scanalyzers . | . . . . . . . . Garrison Access . | . . . . . . . . Terminal Hacks 6 | . 1 . . . 4 . 1 Record 4 | . . . . . 4 . . Part Schematic 1 | . 1 . . . . . . Registered Prototypes 1 | . . . . . . . 1 Fabricator Hacks . | . . . . . . . . Repair Station Hacks . | . . . . . . . . Recycling Unit Hacks . | . . . . . . . . Scanalyzer . | . . . . . . . . Garrison Access Hacks . | . . . . . . . . Unauthorized Hacks . | . . . . . . . . Terminals . | . . . . . . . . Fabricators . | . . . . . . . . Repair Stations . | . . . . . . . . Recycling Units . | . . . . . . . . Scanalyzers . | . . . . . . . . Garrison Access . | . . . . . . . . Data Cores Recovered 1 | . . . . . . . 1 Used . | . . . . . . . . Hacking Detections 1 | . . . . . . . 1 Full Trace Events . | . . . . . . . . Feedback Events . | . . . . . . . . Feedback Blocked . | . . . . . . . . Robot Schematics Acquired . | . . . . . . . . Robots Built . | . . . . . . . . Authchips . | . . . . . . . . Time . | . . . . . . . . Total Robot Build Rating . | . . . . . . . . Part Schematics Acquired 1 | . 1 . . . . . . Parts Built . | . . . . . . . . Authchips . | . . . . . . . . Time . | . . . . . . . . Total Part Build Rating . | . . . . . . . . Parts Repaired . | . . . . . . . . Time . | . . . . . . . . Parts Recycled . | . . . . . . . . Recycled Matter . | . . . . . . . . Retrieved Matter . | . . . . . . . . Retrieved Components . | . . . . . . . . Parts Scanalyzed . | . . . . . . . . Part Schematics Acquired . | . . . . . . . . Parts Damaged . | . . . . . . . . Bothacking | -11 -10 -10 -9 -9 -9 -8 -8 ------------ Run | Yrd Mat Min Mat Min Exi Min Mat Used RIF Installer . | . . . . . . . . Robots Hacked . | . . . . . . . . Non-combat . | . . . . . . . . Combat . | . . . . . . . . Robot Hacks Applied . | . . . . . . . . Relay Couplers Released . | . . . . . . . . Fabnet Peak Effective % . | . . . . . . . . Robots Rewired . | . . . . . . . . Allies Hacked . | . . . . . . . . Hacks Repelled . | . . . . . . . . Allies | -11 -10 -10 -9 -9 -9 -8 -8 -------- Run | Yrd Mat Min Mat Min Exi Min Mat Total Allies 2 | . . 2 . . . . . Largest Group 2 | . . 2 2 2 . . . Highest-Rated Group 41 | . . 41 41 36 . . . Highest-Rated Ally 31 | . . 31 31 26 . . . Total Orders . | . . . . . . . . Ally Attacks 33 | . . 11 20 2 . . . Total Damage 422 | . . 148 274 . . . . Kills 8 | . . 2 6 . . . . Allies Corrupted . | . . . . . . . . Allies Melted . | . . . . . . . . Intel | -11 -10 -10 -9 -9 -9 -8 -8 ------- Run | Yrd Mat Min Mat Min Exi Min Mat Active Infowar (turns) . | . . . . . . . . Robot Analysis Total . | . . . . . . . . Derelict Logs Recovered 4 | . . 2 . 2 . . . Drone Launches . | . . . . . . . . Drone Recoveries . | . . . . . . . . Exploration | -11 -10 -10 -9 -9 -9 -8 -8 ------------- Run | Yrd Mat Min Mat Min Exi Min Mat Turns Passed 3572 | 48 205 998 380 428 622 61 830 Spaces Moved 1661 | 39 92 427 132 242 352 21 356 Core 252 | 19 . . . . . 15 218 Treads 1357 | 20 92 427 132 242 352 6 86 Legs 49 | . . . . . . . 49 Wheels . | . . . . . . . . Hover 3 | . . . . . . . 3 Flight . | . . . . . . . . Fastest Speed 50 | 50 160 160 160 160 160 100 50 Average Speed 158 | 106 160 160 160 160 160 136 161 Slowest Speed 300 | 160 160 160 160 160 160 160 300 Overloaded Moves . | . . . . . . . . Propulsion Burnouts . | . . . . . . . . Robots Hopped . | . . . . . . . . Potential Cave-ins . | . . . . . . . . Cave-ins Triggered . | . . . . . . . . Exploration Rate (%) 40 | 4 23 90 23 66 76 9 31 Regions Visited 7 Branch Regions 4 Pre-discovered Areas . | . . . . . . . . Known Exits Taken . | . . . . . . . . Unknown Exits Taken 7 | 1 1 1 1 1 1 1 . Scrap Searched 3 | . . 2 . 1 . . . Spaces Dug 10 | . . . 10 . . . . Terrain Destroyed 150 | . . . 57 36 . 54 3 Melee . | . . . . . . . . Projectile 3 | . . . . . . . 3 AOE 147 | . . . 57 36 . 54 . Terrain Rammed . | . . . . . . . . Walls Destroyed . | . . . . . . . . Machines Disabled . | . . . . . . . . Actions | -11 -10 -10 -9 -9 -9 -8 -8 --------- Run | Yrd Mat Min Mat Min Exi Min Mat Total 2369 | 46 114 715 257 276 411 37 513 Wait 487 | . . 272 92 26 60 . 37 Move 1654 | 38 91 426 131 241 351 20 356 Hop . | . . . . . . . . Pick Up 27 | 4 3 3 1 . . . 16 Fast Attach 10 | . . 1 3 . . . 6 Attach 21 | 4 1 . . . . 1 15 Detach . | . . . . . . . . Swap 6 | . 1 . 2 2 . . 1 Drop 7 | . . . 1 1 . . 5 Fire 149 | . 18 13 27 6 . 16 69 Melee . | . . . . . . . . Ram . | . . . . . . . . Kick . | . . . . . . . . Crush 8 | . . . . . . . 8 Escape Stasis . | . . . . . . . . Rewire . | . . . . . . . . Trap . | . . . . . . . . Miscellaneous . | . . . . . . . . Route ------- -11/Scrapyard -10/Materials -10/Mines -9/Materials -9/Mines (discovered 2 exits: *Mat / *Exi) -9/Exiles -8/Mines -8/Materials (discovered 1 exit: [*Fac]) History --------- Turn | Location | Event 4 | -11/Scrapyard | Discovered new exit (range 15) 49 | -11/Scrapyard | Entered Materials 173 | -10/Materials | Discovered new exit (range 12) 254 | -10/Materials | Entered Mines 280 | -10/Mines | Found a hidden stash of uninstalled traps 314 | -10/Mines | Build established: Mutant 396 | -10/Mines | Learned Materials trap positions 441 | -10/Mines | Found a damaged Exp. Sensor Array with a note attached 444 | -10/Mines | Found Prototype Device 908 | -10/Mines | Learned Materials interactive machine intel 1220 | -10/Mines | Discovered new exit (range 6) 1252 | -10/Mines | Entered Materials 1252 | -9/Materials | Accompanied by 2 allies 1252 | -9/Materials | Evolved 2 slots: Utility x2 1253 | -9/Materials | Loaded intel: 30 trap records 1254 | -9/Materials | Loaded intel: 18 interactive machine locations 1257 | -9/Materials | Led the pair of lost Derelicts to an unsafe place 1584 | -9/Materials | Discovered new exit (range 13) 1632 | -9/Materials | Entered Mines 1632 | -9/Mines | Accompanied by 2 allies 1694 | -9/Mines | YI-UF0 nonchalantly dropped a Grenade Launcher on the ground 1708 | -9/Mines | Learned Materials emergency access door positions 1709 | -9/Mines | Build established: Hacker-Mutant 1770 | -9/Mines | Learned Materials non-interactive machine intel 1782 | -9/Mines | Discovered new exit (range 14) 2054 | -9/Mines | Deemed a non-threat by the Exiles lab entrance 2054 | -9/Mines | Discovered new exit (range 5) 2060 | -9/Mines | Entered Exiles 2060 | -9/Exiles | Found Exiles lab abandoned 2666 | -9/Exiles | Discovered new exit (range 12) 2682 | -9/Exiles | Entered Mines 2698 | -8/Mines | Discovered new exit (range 16) 2739 | -8/Mines | Core integrity fell below 50% 2743 | -8/Mines | Entered Materials 2743 | -8/Materials | Evolved 2 slots: Utility x1, Weapon x1 2745 | -8/Materials | Loaded intel: 35 non-interactive machine locations 2767 | -8/Materials | Lost 6 parts (1p1n1u3w) 3393 | -8/Materials | Core integrity fell below 50% 3431 | -8/Materials | Lost 11 parts (1p3n4u3w) 3506 | -8/Materials | Discovered new exit (range 15) 3547 | -8/Materials | Lost 3 parts (1p1n1w) 3559 | -8/Materials | Core integrity fell below 20% 3573 | -8/Materials | Destroyed by G-47 Trooper with Particle Gun Last Messages --------------- Acquired Imp. Medium Armor Plating. T-07 Excavator destroyed. Acquired 10 matter. Lightning Gun destroyed. Critical hit (Burn: +37). K-01 Serf destroyed. K-01 Serf collects debris. EXIT=FOUND Carbon-fiber Leg destroyed. Imp. Ion Engine destroyed. Acquired Prototype Ballistic Gun. Identified Enh. Autogun. Acquired Enh. Autogun. Dropped Faulty Enh. Autogun. Acquired Enh. Autogun. Imp. Medium Armor Plating destroyed. Hacking Suite destroyed. G-50 Soldier destroyed. Switching to secondary target: G-47 Trooper. R-06 Scavenger collects Carbon-fiber Leg. Map ----- +----------------------------------------------------+ | | | | | | | | | | | | | | | ?????????????????????????????????????????????????? | | ?????????????????????????????????????????????????? | | ??????????????????????????????????????????????"""? | | ????????????????????????"""???????????????????"""? | | ????????????????????????"""?????????#####?????"""? | | ????????????????????????"""?????????# #????????? | | ????????????????????????"""?????????# < #????????? | | ???????????????#????????????????????# #????????? | | ???????????????# #########+########## +????????? | | ???????????????# #????????? | | ???????????????+ #????????? | | ???????????????# #????????? | | ???????????????# ####+########## #????????? | | ???????????????# ? # r%* #??????# #???"""??? | | ???????????????? + g g=#??????# #??"""""?? | | ???????????????###+####gg #??????# / ?"""""?? | | ??????????????????????#= ! ! #??????# # """""?? | | ??????????????????????+ [ ! #??????# # """??? | | ??????????????????????# @!! #?????## #?= ????? | | ??????????????????????############# # #??##+???? | | ?????????????????????????????# "T" ?# #????????? | | ?????????????????????????????# # #?????#??? | | ?????????????????????????????#!! + ##### #### | | ?????????????????????????????#!! # | | ?????????????????????????????# # | | ?????????????????????????????# ?# | | ??????????????????????#########+###?# *########## | | ?????????###??????????#[[!!!!##%#???# !%#????????? | | ???????### ##########?#[ !! !##*#???# #????????? | | ???????# %!!#%!% #?#[ ##!##### ######???? | | ???????# [! !%#=*! ###%* # #?? | | ???????# %%+ ! % % #?? | | ???????# "T"=#%% ########## #?? | | ???????#! """*#%% ##???????#########+##### #?? | | ???????# ## #########????????????????? #?? | | ?????########### # #?????????????????? #?? | | ?????# # # #???????????????????#?? | | ?????# + + #?????????????????????? | | ?????# # # #??????"""?"""????????? | | ?????# ??# # ! !#??????"""?"""????????? | | ?????######????# #########??????"""?"""????????? | | ????????????#####/#####??????????????????????????? | | ????????????# #??????????????????????????? | +----------------------------------------------------+ Best States ------------- Heat Dissipation 31 Energy Generation 15 Energy Capacity 265 Matter Stores 500 Matter Capacity 500 Sight Range 16 Terrain Scan Density 10 Armor Coverage 225 Evasion (%) 50 Recoil Reduction 2 Offensive Hacking 30 Item Schematics ----------------- Hcp. Matter Pod | -10/Materials | Hacked Robot Schematics ------------------ None Fabricated ------------ Nothing Repaired ---------- Nothing Alien Tech Used ----------------- None Achievements -------------- None Challenges ------------ None Game ------ Seed ChargeEncryptedMatter Manual? 0 Play Time 00:21:57 Cumulative 127.0 hours Start 2025.09.06 @ 10:22:19 End 2025.09.06 @ 10:49:19 Sessions 1 Manual Loads 0 Difficulty Rogue Special Mode None Game No. 446 Rogue 446 Adventurer 0 Explorer 0 Win Type - Total 0 Types 0/0/0/0/0/0/0/0/0/0 Lore% 50 Gallery% 47 Achievement% 34 Wizard Run 0 Options --------- Layout 2 ASCII 0 Keyboard 0 Movement Mouse Keybinds 0 Fullscreen 2 Font 24/Smallcaps Map View 50x44 Zoom Use 0% Tactical HUD 0 Map Filters NONE Filters NONE Steam 1 RUN: bd93ed9c-2b7b-4c4f-b126-2303be8f5f68